[Event "Titled Tuesday Blitz November 01 Late 2022"]
[White "Roque Sola, Jose Luis"]
[Black "Petrova, Irina"]
[WhiteFideId "5120390"]
[BlackFideId "14124122"]
[WhiteElo "2117"]
[BlackElo "2023"]
[Result "1-0"]
[Round "10"]
[TimeControl "180+1"]
[Date "2022.11.02"]
[WhiteClock "0:01:04"]
[BlackClock "0:00:31"]

1. c4 {[%clk 0:02:57]}  d6 {[%clk 0:03:00]} 2. Nc3 {[%clk 0:02:56]}  e5 {[%clk 0:03:00]} 3. Nf3 {[%clk 0:02:55]}  Nc6 {[%clk 0:03:00]} 4. g3 {[%clk 0:02:55]}  f5 {[%clk 0:03:00]} 5. d3 {[%clk 0:02:55]}  Nf6 {[%clk 0:03:00]} 6. Bg2 {[%clk 0:02:54]}  g6 {[%clk 0:03:00]} 7. O-O {[%clk 0:02:54]}  Bg7 {[%clk 0:03:00]} 8. Bg5 {[%clk 0:02:54]}  h6 {[%clk 0:02:59]} 9. Bxf6 {[%clk 0:02:54]}  Qxf6 {[%clk 0:03:00]} 10. Nd5 {[%clk 0:02:54]}  Qd8 {[%clk 0:03:00]} 11. Rb1 {[%clk 0:02:52]}  O-O {[%clk 0:02:58]} 12. b4 {[%clk 0:02:43]}  Be6 {[%clk 0:02:57]} 13. Nd2 {[%clk 0:02:42]}  Qd7 {[%clk 0:02:49]} 14. b5 {[%clk 0:02:36]}  Nd8 {[%clk 0:02:48]} 15. a4 {[%clk 0:02:34]}  Nf7 {[%clk 0:02:42]} 16. a5 {[%clk 0:02:33]}  c6 {[%clk 0:02:36]} 17. bxc6 {[%clk 0:02:11]}  bxc6 {[%clk 0:02:37]} 18. Nb4 {[%clk 0:02:09]}  Rac8 {[%clk 0:02:07]} 19. Qa4 {[%clk 0:02:08]}  Nd8 {[%clk 0:01:59]} 20. a6 {[%clk 0:02:08]}  Kh7 {[%clk 0:01:38]} 21. Nb3 {[%clk 0:02:07]}  f4 {[%clk 0:01:28]} 22. Na5 {[%clk 0:02:07]}  f3 {[%clk 0:01:02]} 23. exf3 {[%clk 0:02:03]}  Bh3 {[%clk 0:00:54]} 24. Na2 {[%clk 0:01:54]}  Bxg2 {[%clk 0:00:49]} 25. Kxg2 {[%clk 0:01:55]}  Qf5 {[%clk 0:00:48]} 26. Qd1 {[%clk 0:01:54]}  Ne6 {[%clk 0:00:46]} 27. Nb3 {[%clk 0:01:12]}  Ng5 {[%clk 0:00:44]} 28. Nd2 {[%clk 0:01:11]}  Qxd3 {[%clk 0:00:35]} 29. h4 {[%clk 0:01:10]}  Ne6 {[%clk 0:00:34]} 30. Nb4 {[%clk 0:01:06]}  Nd4 {[%clk 0:00:31]} 31. Nxd3 {[%clk 0:01:04]} 1-0


[Site "https://www.chess.com"]

[Event "Titled Tuesday Blitz November 01 Late 2022"]
[White "Santos Flores, Alberto"]
[Black "Voigt, Martin"]
[WhiteFideId "3601234"]
[BlackFideId "4607228"]
[WhiteElo "2235"]
[BlackElo "2356"]
[Result "1-0"]
[Round "10"]
[TimeControl "180+1"]
[Date "2022.11.02"]
[WhiteClock "0:01:53"]
[BlackClock "0:00:32"]

1. e4 {[%clk 0:03:00]}  c6 {[%clk 0:02:59]} 2. d4 {[%clk 0:02:59]}  d5 {[%clk 0:02:59]} 3. Nc3 {[%clk 0:02:58]}  dxe4 {[%clk 0:02:59]} 4. Nxe4 {[%clk 0:02:58]}  Nf6 {[%clk 0:03:00]} 5. Nxf6+ {[%clk 0:02:58]}  exf6 {[%clk 0:03:01]} 6. c3 {[%clk 0:02:58]}  Bd6 {[%clk 0:03:01]} 7. Bd3 {[%clk 0:02:58]}  O-O {[%clk 0:03:02]} 8. Ne2 {[%clk 0:02:58]}  Re8 {[%clk 0:03:02]} 9. O-O {[%clk 0:02:58]}  Nd7 {[%clk 0:02:59]} 10. Ng3 {[%clk 0:02:58]}  Nf8 {[%clk 0:02:52]} 11. Qh5 {[%clk 0:02:54]}  Be6 {[%clk 0:02:30]} 12. Nf5 {[%clk 0:02:43]}  Bxf5 {[%clk 0:02:29]} 13. Qxf5 {[%clk 0:02:42]}  g6 {[%clk 0:02:23]} 14. Qf3 {[%clk 0:02:40]}  f5 {[%clk 0:02:23]} 15. Bf4 {[%clk 0:02:38]}  Ne6 {[%clk 0:02:16]} 16. Bxd6 {[%clk 0:02:37]}  Qxd6 {[%clk 0:02:17]} 17. Rfe1 {[%clk 0:02:35]}  Rad8 {[%clk 0:02:04]} 18. Bc4 {[%clk 0:02:27]}  Ng5 {[%clk 0:02:02]} 19. Qd3 {[%clk 0:02:20]}  b5 {[%clk 0:01:48]} 20. Bb3 {[%clk 0:02:18]}  a5 {[%clk 0:01:48]} 21. a4 {[%clk 0:02:12]}  Rxe1+ {[%clk 0:01:42]} 22. Rxe1 {[%clk 0:02:11]}  bxa4 {[%clk 0:01:43]} 23. Bxa4 {[%clk 0:02:10]}  c5 {[%clk 0:01:41]} 24. Rd1 {[%clk 0:02:05]}  cxd4 {[%clk 0:01:38]} 25. Qxd4 {[%clk 0:02:05]}  Qxd4 {[%clk 0:01:36]} 26. Rxd4 {[%clk 0:02:06]}  Rxd4 {[%clk 0:01:31]} 27. cxd4 {[%clk 0:02:07]}  Kf8 {[%clk 0:01:28]} 28. Kf1 {[%clk 0:02:02]}  Ke7 {[%clk 0:01:28]} 29. Ke2 {[%clk 0:02:01]}  Kd6 {[%clk 0:01:28]} 30. Bb3 {[%clk 0:02:00]}  f6 {[%clk 0:01:18]} 31. f3 {[%clk 0:01:59]}  h6 {[%clk 0:00:44]} 32. Bg8 {[%clk 0:01:57]}  Kc6 {[%clk 0:00:32]} 33. h4 {[%clk 0:01:53]} 1-0


[Site "https://www.chess.com"]

[Event "Titled Tuesday Blitz November 01 Late 2022"]
[White "Sarana, Alexey"]
[Black "Ivic, Velimir"]
[WhiteFideId "24133795"]
[BlackFideId "950122"]
[WhiteElo "2689"]
[BlackElo "2625"]
[Result "1-0"]
[Round "10"]
[TimeControl "180+1"]
[Date "2022.11.01"]
[WhiteClock "0:00:06"]
[BlackClock "0:00:03"]

1. c4 {[%clk 0:02:57]}  e5 {[%clk 0:02:59]} 2. Nc3 {[%clk 0:02:57]}  Nc6 {[%clk 0:02:59]} 3. Nf3 {[%clk 0:02:58]}  Nf6 {[%clk 0:02:59]} 4. g3 {[%clk 0:02:58]}  d5 {[%clk 0:03:00]} 5. cxd5 {[%clk 0:02:58]}  Nxd5 {[%clk 0:03:00]} 6. Bg2 {[%clk 0:02:59]}  Bc5 {[%clk 0:03:01]} 7. O-O {[%clk 0:02:59]}  O-O {[%clk 0:03:01]} 8. Qc2 {[%clk 0:02:59]}  Ndb4 {[%clk 0:02:55]} 9. Qe4 {[%clk 0:02:59]}  Bd6 {[%clk 0:02:31]} 10. a3 {[%clk 0:02:52]}  Na6 {[%clk 0:02:30]} 11. b4 {[%clk 0:02:53]}  Re8 {[%clk 0:02:22]} 12. d3 {[%clk 0:02:12]}  f5 {[%clk 0:02:21]} 13. Qc4+ {[%clk 0:02:12]}  Be6 {[%clk 0:02:21]} 14. Qb5 {[%clk 0:02:13]}  Qc8 {[%clk 0:02:21]} 15. e3 {[%clk 0:02:04]}  Nab8 {[%clk 0:02:12]} 16. Ng5 {[%clk 0:01:58]}  a5 {[%clk 0:01:47]} 17. Nxe6 {[%clk 0:01:56]}  Rxe6 {[%clk 0:01:48]} 18. Bd5 {[%clk 0:01:33]}  axb4 {[%clk 0:01:48]} 19. Qc4 {[%clk 0:01:33]}  Nd8 {[%clk 0:01:47]} 20. Nb5 {[%clk 0:01:32]}  Nbc6 {[%clk 0:01:27]} 21. Nxd6 {[%clk 0:01:22]}  cxd6 {[%clk 0:01:28]} 22. Bb2 {[%clk 0:01:22]}  bxa3 {[%clk 0:01:23]} 23. Rxa3 {[%clk 0:01:19]}  Rxa3 {[%clk 0:01:23]} 24. Bxa3 {[%clk 0:01:20]}  Qd7 {[%clk 0:01:23]} 25. Rb1 {[%clk 0:01:11]}  Kf7 {[%clk 0:01:23]} 26. Bxe6+ {[%clk 0:01:09]}  Nxe6 {[%clk 0:01:17]} 27. Qd5 {[%clk 0:01:06]}  Ke7 {[%clk 0:01:18]} 28. h4 {[%clk 0:00:43]}  g6 {[%clk 0:01:16]} 29. Kh2 {[%clk 0:00:31]}  Qc7 {[%clk 0:01:12]} 30. Rc1 {[%clk 0:00:31]}  Qd7 {[%clk 0:01:11]} 31. Rb1 {[%clk 0:00:31]}  Qc7 {[%clk 0:01:11]} 32. Rb2 {[%clk 0:00:31]}  Qd7 {[%clk 0:01:11]} 33. Rc2 {[%clk 0:00:31]}  Qc7 {[%clk 0:01:03]} 34. d4 {[%clk 0:00:29]}  exd4 {[%clk 0:00:48]} 35. exd4 {[%clk 0:00:29]}  Qd7 {[%clk 0:00:48]} 36. Rd2 {[%clk 0:00:24]}  Kf7 {[%clk 0:00:37]} 37. Rb2 {[%clk 0:00:08]}  Ke7 {[%clk 0:00:31]} 38. Kg2 {[%clk 0:00:06]}  Nexd4 {[%clk 0:00:26]} 39. Bxd6+ {[%clk 0:00:06]}  Kf6 {[%clk 0:00:17]} 40. Rd2 {[%clk 0:00:06]}  Ne6 {[%clk 0:00:16]} 41. Qb5 {[%clk 0:00:05]}  Kf7 {[%clk 0:00:12]} 42. Qd5 {[%clk 0:00:04]}  Kf6 {[%clk 0:00:12]} 43. Rd1 {[%clk 0:00:04]}  f4 {[%clk 0:00:09]} 44. Be5+ {[%clk 0:00:04]}  Nxe5 {[%clk 0:00:09]} 45. Qxd7 {[%clk 0:00:04]}  Nxd7 {[%clk 0:00:10]} 46. Rxd7 {[%clk 0:00:04]}  fxg3 {[%clk 0:00:10]} 47. fxg3 {[%clk 0:00:05]}  h5 {[%clk 0:00:09]} 48. Rxb7 {[%clk 0:00:05]}  Nd4 {[%clk 0:00:09]} 49. Rb6+ {[%clk 0:00:04]}  Kf5 {[%clk 0:00:07]} 50. Ra6 {[%clk 0:00:05]}  Ne6 {[%clk 0:00:05]} 51. Ra5+ {[%clk 0:00:05]}  Kf6 {[%clk 0:00:05]} 52. Kf3 {[%clk 0:00:06]}  Nd4+ {[%clk 0:00:04]} 53. Ke4 {[%clk 0:00:05]}  Ne6 {[%clk 0:00:04]} 54. Ra6 {[%clk 0:00:05]}  Kf7 {[%clk 0:00:02]} 55. Ke5 {[%clk 0:00:05]}  Ng7 {[%clk 0:00:03]} 56. Ra7+ {[%clk 0:00:06]}  Kf8 {[%clk 0:00:02]} 57. Kf6 {[%clk 0:00:06]}  Nf5 {[%clk 0:00:03]} 58. Ra8# {[%clk 0:00:06]} 1-0


[Site "https://www.chess.com"]

[Event "Titled Tuesday Blitz November 01 Late 2022"]
[White "Silva, Caio Henrique Angelico"]
[Black "Roman, Rodrigo"]
[WhiteFideId "22777210"]
[BlackFideId "3701220"]
[WhiteElo "1990"]
[BlackElo "2001"]
[Result "1-0"]
[Round "10"]
[TimeControl "180+1"]
[Date "2022.11.02"]
[WhiteClock "0:00:41"]
[BlackClock "0:01:31"]

1. Nf3 {[%clk 0:03:00]}  c5 {[%clk 0:02:55]} 2. g3 {[%clk 0:03:00]}  Nc6 {[%clk 0:02:52]} 3. d4 {[%clk 0:02:59]}  cxd4 {[%clk 0:02:52]} 4. Nxd4 {[%clk 0:03:00]}  g6 {[%clk 0:02:52]} 5. Bg2 {[%clk 0:02:59]}  Bg7 {[%clk 0:02:53]} 6. Nxc6 {[%clk 0:03:00]}  bxc6 {[%clk 0:02:54]} 7. c4 {[%clk 0:03:00]}  Nf6 {[%clk 0:02:55]} 8. O-O {[%clk 0:02:59]}  O-O {[%clk 0:02:56]} 9. Nc3 {[%clk 0:03:00]}  Rb8 {[%clk 0:02:54]} 10. e4 {[%clk 0:02:52]}  d6 {[%clk 0:02:53]} 11. Rb1 {[%clk 0:02:50]}  Nd7 {[%clk 0:02:53]} 12. Qc2 {[%clk 0:02:48]}  Ba6 {[%clk 0:02:53]} 13. b3 {[%clk 0:02:45]}  h5 {[%clk 0:02:48]} 14. Bb2 {[%clk 0:02:45]}  h4 {[%clk 0:02:48]} 15. Ne2 {[%clk 0:02:28]}  e5 {[%clk 0:02:46]} 16. Rbd1 {[%clk 0:02:25]}  Qe7 {[%clk 0:02:46]} 17. Ba3 {[%clk 0:02:24]}  c5 {[%clk 0:02:43]} 18. Nc3 {[%clk 0:02:22]}  Bb7 {[%clk 0:02:42]} 19. Nb5 {[%clk 0:02:17]}  hxg3 {[%clk 0:02:40]} 20. hxg3 {[%clk 0:02:16]}  Bc6 {[%clk 0:02:38]} 21. Nxd6 {[%clk 0:02:13]}  Rfd8 {[%clk 0:02:39]} 22. Rd3 {[%clk 0:02:03]}  a5 {[%clk 0:02:39]} 23. Rfd1 {[%clk 0:02:02]}  Kf8 {[%clk 0:02:37]} 24. Nb5 {[%clk 0:01:54]}  Nf6 {[%clk 0:02:29]} 25. Bxc5 {[%clk 0:01:47]}  Qxc5 {[%clk 0:02:29]} 26. Rxd8+ {[%clk 0:01:47]}  Rxd8 {[%clk 0:02:30]} 27. Rxd8+ {[%clk 0:01:47]}  Ke7 {[%clk 0:02:31]} 28. Qd2 {[%clk 0:01:43]}  Nd7 {[%clk 0:02:26]} 29. Rc8 {[%clk 0:01:33]}  Bf6 {[%clk 0:02:13]} 30. Bh3 {[%clk 0:01:32]}  Bxb5 {[%clk 0:01:45]} 31. Rxc5 {[%clk 0:01:25]}  Nxc5 {[%clk 0:01:45]} 32. cxb5 {[%clk 0:01:23]}  Nxe4 {[%clk 0:01:45]} 33. Qd7+ {[%clk 0:01:14]}  Kf8 {[%clk 0:01:45]} 34. b6 {[%clk 0:01:15]}  Nc5 {[%clk 0:01:45]} 35. Qc8+ {[%clk 0:01:09]}  Kg7 {[%clk 0:01:44]} 36. b7 {[%clk 0:01:10]}  e4 {[%clk 0:01:45]} 37. b8=Q {[%clk 0:01:02]}  Kh6 {[%clk 0:01:45]} 38. Qxc5 {[%clk 0:01:02]}  e3 {[%clk 0:01:45]} 39. Qxe3+ {[%clk 0:01:01]}  Kg7 {[%clk 0:01:45]} 40. Qbe5 {[%clk 0:00:59]}  a4 {[%clk 0:01:44]} 41. Qxf6+ {[%clk 0:00:59]}  Kxf6 {[%clk 0:01:45]} 42. Be6 {[%clk 0:00:58]}  fxe6 {[%clk 0:01:45]} 43. bxa4 {[%clk 0:00:58]}  g5 {[%clk 0:01:45]} 44. a5 {[%clk 0:00:59]}  e5 {[%clk 0:01:45]} 45. a6 {[%clk 0:01:00]}  Kf5 {[%clk 0:01:45]} 46. a7 {[%clk 0:01:01]}  g4 {[%clk 0:01:46]} 47. a8=Q {[%clk 0:00:58]}  Kf6 {[%clk 0:01:46]} 48. Qae4 {[%clk 0:00:57]}  Kf7 {[%clk 0:01:46]} 49. a4 {[%clk 0:00:58]}  Kg8 {[%clk 0:01:44]} 50. a5 {[%clk 0:00:59]}  Kf7 {[%clk 0:01:44]} 51. a6 {[%clk 0:01:00]}  Ke6 {[%clk 0:01:44]} 52. a7 {[%clk 0:01:01]}  Kf7 {[%clk 0:01:44]} 53. Qxg4 {[%clk 0:00:59]}  e4 {[%clk 0:01:44]} 54. a8=Q {[%clk 0:00:58]}  Ke7 {[%clk 0:01:44]} 55. Qaxe4+ {[%clk 0:00:53]}  Kd6 {[%clk 0:01:44]} 56. Qge6+ {[%clk 0:00:51]}  Kc7 {[%clk 0:01:44]} 57. Q4c4+ {[%clk 0:00:48]}  Kb8 {[%clk 0:01:31]} 58. Qeb3+ {[%clk 0:00:46]}  Ka7 {[%clk 0:01:30]} 59. Qee2 {[%clk 0:00:40]}  Ka8 {[%clk 0:01:31]} 60. Qea2# {[%clk 0:00:41]} 1-0


[Site "https://www.chess.com"]

[Event "Titled Tuesday Blitz November 01 Late 2022"]
[White "Soto Vega, Jorge"]
[Black "Rosen, Eric"]
[WhiteFideId "3800580"]
[BlackFideId "2032562"]
[WhiteElo "2263"]
[BlackElo "2362"]
[Result "0-1"]
[Round "10"]
[TimeControl "180+1"]
[Date "2022.11.02"]
[WhiteClock "0:00:20"]
[BlackClock "0:00:03"]

1. e4 {[%clk 0:01:22]}  e5 {[%clk 0:02:59]} 2. Nf3 {[%clk 0:01:22]}  Nf6 {[%clk 0:02:59]} 3. Nxe5 {[%clk 0:01:22]}  Nc6 {[%clk 0:02:59]} 4. Nxc6 {[%clk 0:01:21]}  dxc6 {[%clk 0:03:00]} 5. d3 {[%clk 0:01:21]}  Bc5 {[%clk 0:03:00]} 6. Be2 {[%clk 0:01:10]}  h5 {[%clk 0:02:58]} 7. c3 {[%clk 0:01:10]}  Ng4 {[%clk 0:02:58]} 8. d4 {[%clk 0:01:09]}  Qh4 {[%clk 0:02:59]} 9. g3 {[%clk 0:01:00]}  Qf6 {[%clk 0:02:59]} 10. f3 {[%clk 0:00:57]}  h4 {[%clk 0:02:59]} 11. Bf4 {[%clk 0:00:43]}  hxg3 {[%clk 0:02:50]} 12. Bxg3 {[%clk 0:00:43]}  Ne3 {[%clk 0:02:50]} 13. Qd2 {[%clk 0:00:39]}  Ng2+ {[%clk 0:02:42]} 14. Kf2 {[%clk 0:00:39]}  Bb6 {[%clk 0:02:41]} 15. Kxg2 {[%clk 0:00:37]}  Bh3+ {[%clk 0:02:42]} 16. Kf2 {[%clk 0:00:37]}  c5 {[%clk 0:02:42]} 17. d5 {[%clk 0:00:28]}  c4+ {[%clk 0:02:42]} 18. Ke1 {[%clk 0:00:29]}  Bg2 {[%clk 0:02:35]} 19. Rf1 {[%clk 0:00:24]}  c6 {[%clk 0:01:41]} 20. Qf4 {[%clk 0:00:18]}  Qxf4 {[%clk 0:01:16]} 21. Bxf4 {[%clk 0:00:18]}  cxd5 {[%clk 0:01:17]} 22. Nd2 {[%clk 0:00:17]}  O-O-O {[%clk 0:01:03]} 23. exd5 {[%clk 0:00:16]}  Rxd5 {[%clk 0:00:59]} 24. Nxc4 {[%clk 0:00:16]}  Bxf1 {[%clk 0:00:45]} 25. Nxb6+ {[%clk 0:00:16]}  axb6 {[%clk 0:00:43]} 26. Kxf1 {[%clk 0:00:16]}  g5 {[%clk 0:00:43]} 27. Bg3 {[%clk 0:00:17]}  f5 {[%clk 0:00:44]} 28. f4 {[%clk 0:00:17]}  Rd2 {[%clk 0:00:34]} 29. Rb1 {[%clk 0:00:16]}  Re8 {[%clk 0:00:20]} 30. Bh5 {[%clk 0:00:15]}  Re4 {[%clk 0:00:12]} 31. fxg5 {[%clk 0:00:14]}  f4 {[%clk 0:00:12]} 32. Be1 {[%clk 0:00:14]}  Rxh2 {[%clk 0:00:12]} 33. Bf3 {[%clk 0:00:14]}  Re5 {[%clk 0:00:07]} 34. Kg1 {[%clk 0:00:13]}  Rh8 {[%clk 0:00:06]} 35. Bf2 {[%clk 0:00:13]}  Rxg5+ {[%clk 0:00:06]} 36. Kf1 {[%clk 0:00:14]}  Kc7 {[%clk 0:00:05]} 37. Rd1 {[%clk 0:00:14]}  Rh3 {[%clk 0:00:04]} 38. Ke2 {[%clk 0:00:14]}  Re5+ {[%clk 0:00:04]} 39. Kf1 {[%clk 0:00:14]}  Rxf3 {[%clk 0:00:04]} 40. Rd4 {[%clk 0:00:14]}  Rh3 {[%clk 0:00:03]} 41. Kg2 {[%clk 0:00:14]}  Rhh5 {[%clk 0:00:02]} 42. Rxf4 {[%clk 0:00:15]}  Kc6 {[%clk 0:00:03]} 43. Kf3 {[%clk 0:00:14]}  Rhf5 {[%clk 0:00:02]} 44. Rxf5 {[%clk 0:00:11]}  Rxf5+ {[%clk 0:00:03]} 45. Ke2 {[%clk 0:00:12]}  Rd5 {[%clk 0:00:02]} 46. a4 {[%clk 0:00:11]}  b5 {[%clk 0:00:02]} 47. axb5+ {[%clk 0:00:11]}  Kxb5 {[%clk 0:00:03]} 48. b3 {[%clk 0:00:12]}  Rd7 {[%clk 0:00:03]} 49. Bd4 {[%clk 0:00:12]}  Kc6 {[%clk 0:00:03]} 50. Kd3 {[%clk 0:00:12]}  Rh7 {[%clk 0:00:03]} 51. c4 {[%clk 0:00:13]}  Rh3+ {[%clk 0:00:03]} 52. Be3 {[%clk 0:00:13]}  Rh1 {[%clk 0:00:03]} 53. b4 {[%clk 0:00:13]}  Rd1+ {[%clk 0:00:03]} 54. Kc3 {[%clk 0:00:13]}  Re1 {[%clk 0:00:04]} 55. b5+ {[%clk 0:00:14]}  Kc7 {[%clk 0:00:04]} 56. Kd4 {[%clk 0:00:15]}  Rh1 {[%clk 0:00:03]} 57. Bf4+ {[%clk 0:00:14]}  Kc8 {[%clk 0:00:03]} 58. Be3 {[%clk 0:00:15]}  Rh5 {[%clk 0:00:03]} 59. Bf4 {[%clk 0:00:15]}  Kd7 {[%clk 0:00:03]} 60. Ke4 {[%clk 0:00:16]}  Rc5 {[%clk 0:00:02]} 61. Kd4 {[%clk 0:00:16]}  Rh5 {[%clk 0:00:03]} 62. Be3 {[%clk 0:00:16]}  Rf5 {[%clk 0:00:03]} 63. Kd3 {[%clk 0:00:17]}  Kc7 {[%clk 0:00:03]} 64. Bd4 {[%clk 0:00:18]}  Rf3+ {[%clk 0:00:03]} 65. Ke4 {[%clk 0:00:18]}  Rh3 {[%clk 0:00:04]} 66. c5 {[%clk 0:00:19]}  Kc8 {[%clk 0:00:04]} 67. Kd5 {[%clk 0:00:19]}  Rh5+ {[%clk 0:00:04]} 68. Kc4 {[%clk 0:00:20]}  Rh1 {[%clk 0:00:05]} 69. c6 {[%clk 0:00:20]}  Rc1+ {[%clk 0:00:04]} 70. Kd5 {[%clk 0:00:19]}  bxc6+ {[%clk 0:00:05]} 71. bxc6 {[%clk 0:00:19]}  Rd1 {[%clk 0:00:04]} 72. Kc5 {[%clk 0:00:19]}  Rc1+ {[%clk 0:00:04]} 73. Kd5 {[%clk 0:00:20]}  Rh1 {[%clk 0:00:04]} 74. Kc5 {[%clk 0:00:21]}  Rh5+ {[%clk 0:00:04]} 75. Kd6 {[%clk 0:00:21]}  Rh6+ {[%clk 0:00:04]} 76. Kc5 {[%clk 0:00:22]}  Rh5+ {[%clk 0:00:04]} 77. Kd6 {[%clk 0:00:21]}  Ra5 {[%clk 0:00:04]} 78. Bc5 {[%clk 0:00:21]}  Ra1 {[%clk 0:00:04]} 79. Bb6 {[%clk 0:00:21]}  Rd1+ {[%clk 0:00:04]} 80. Ke5 {[%clk 0:00:21]}  Rd2 {[%clk 0:00:04]} 81. Ke6 {[%clk 0:00:20]}  Rd3 {[%clk 0:00:03]} 82. Ke5 {[%clk 0:00:20]}  Rd1 {[%clk 0:00:03]} 83. Ba5 {[%clk 0:00:19]}  Ra1 {[%clk 0:00:03]} 84. Bb6 {[%clk 0:00:19]}  Ra6 {[%clk 0:00:03]} 85. Bc5 {[%clk 0:00:19]}  Rxc6 {[%clk 0:00:04]} 86. Kd5 {[%clk 0:00:20]}  Kd7 {[%clk 0:00:04]} 87. Bd4 {[%clk 0:00:21]}  Rg6 {[%clk 0:00:05]} 88. Kc4 {[%clk 0:00:22]}  Rc6+ {[%clk 0:00:04]} 89. Bc5 {[%clk 0:00:23]}  Ke6 {[%clk 0:00:04]} 90. Kb5 {[%clk 0:00:23]}  Kd5 {[%clk 0:00:04]} 91. Bb4 {[%clk 0:00:24]}  Re6 {[%clk 0:00:04]} 92. Ba5 {[%clk 0:00:22]}  Re8 {[%clk 0:00:04]} 93. Kb6 {[%clk 0:00:22]}  Rb8+ {[%clk 0:00:03]} 94. Ka7 {[%clk 0:00:22]}  Rb5 {[%clk 0:00:03]} 95. Bc7 {[%clk 0:00:21]}  Kc6 {[%clk 0:00:04]} 96. Bd8 {[%clk 0:00:20]}  Rb7+ {[%clk 0:00:03]} 97. Ka6 {[%clk 0:00:20]}  Rb8 {[%clk 0:00:03]} 98. Ba5 {[%clk 0:00:20]}  Ra8# {[%clk 0:00:03]} 0-1


[Site "https://www.chess.com"]

[Event "Titled Tuesday Blitz November 01 Late 2022"]
[White "Szpar, Milosz"]
[Black "ChessBrah"]
[WhiteFideId "1184989"]
[WhiteElo "2422"]
[BlackElo "2885"]
[Result "0-1"]
[Round "10"]
[TimeControl "180+1"]
[Date "2022.11.01"]
[WhiteClock "0:02:10"]
[BlackClock "0:00:10"]

1. e4 {[%clk 0:03:00]}  c5 {[%clk 0:02:58]} 2. c3 {[%clk 0:03:00]}  Nf6 {[%clk 0:02:58]} 3. e5 {[%clk 0:03:00]}  Nd5 {[%clk 0:02:59]} 4. Nf3 {[%clk 0:03:00]}  Nc6 {[%clk 0:02:59]} 5. Bc4 {[%clk 0:03:00]}  Nb6 {[%clk 0:02:59]} 6. Bb3 {[%clk 0:03:01]}  d5 {[%clk 0:02:59]} 7. exd6 {[%clk 0:03:01]}  Qxd6 {[%clk 0:03:00]} 8. O-O {[%clk 0:03:00]}  Be6 {[%clk 0:03:00]} 9. Bxe6 {[%clk 0:02:56]}  Qxe6 {[%clk 0:03:01]} 10. a4 {[%clk 0:02:56]}  Qd7 {[%clk 0:03:01]} 11. a5 {[%clk 0:02:56]}  Nd5 {[%clk 0:03:01]} 12. d4 {[%clk 0:02:56]}  e6 {[%clk 0:03:00]} 13. dxc5 {[%clk 0:02:54]}  Bxc5 {[%clk 0:03:00]} 14. Qe2 {[%clk 0:02:55]}  O-O {[%clk 0:03:00]} 15. Rd1 {[%clk 0:02:55]}  Qc7 {[%clk 0:02:59]} 16. Qe4 {[%clk 0:02:53]}  Rfd8 {[%clk 0:02:56]} 17. Nbd2 {[%clk 0:02:48]}  Nxa5 {[%clk 0:02:50]} 18. Qc2 {[%clk 0:02:27]}  Be7 {[%clk 0:00:58]} 19. Ne4 {[%clk 0:02:27]}  h6 {[%clk 0:00:55]} 20. Re1 {[%clk 0:02:26]}  Nb4 {[%clk 0:00:47]} 21. Qa4 {[%clk 0:02:26]}  Nd3 {[%clk 0:00:48]} 22. Qxa5 {[%clk 0:02:26]}  Qxa5 {[%clk 0:00:48]} 23. Rxa5 {[%clk 0:02:27]}  Nxe1 {[%clk 0:00:49]} 24. Nxe1 {[%clk 0:02:27]}  Rd1 {[%clk 0:00:49]} 25. Kf1 {[%clk 0:02:27]}  Rxc1 {[%clk 0:00:49]} 26. Ke2 {[%clk 0:02:28]}  a6 {[%clk 0:00:40]} 27. Nd3 {[%clk 0:02:26]}  Rh1 {[%clk 0:00:37]} 28. Rh5 {[%clk 0:02:23]}  Ra1 {[%clk 0:00:36]} 29. Nd2 {[%clk 0:02:21]}  Rd8 {[%clk 0:00:35]} 30. Nb3 {[%clk 0:02:20]}  Ra4 {[%clk 0:00:35]} 31. Re5 {[%clk 0:02:17]}  Rc4 {[%clk 0:00:33]} 32. g3 {[%clk 0:02:16]}  b6 {[%clk 0:00:32]} 33. h4 {[%clk 0:02:16]}  Bf6 {[%clk 0:00:29]} 34. Re3 {[%clk 0:02:15]}  Rd5 {[%clk 0:00:29]} 35. Nb4 {[%clk 0:02:12]}  Rb5 {[%clk 0:00:24]} 36. Nd2 {[%clk 0:02:12]}  Rc8 {[%clk 0:00:24]} 37. Ne4 {[%clk 0:02:11]}  Be7 {[%clk 0:00:22]} 38. Nd3 {[%clk 0:02:11]}  a5 {[%clk 0:00:22]} 39. Kd2 {[%clk 0:02:07]}  f5 {[%clk 0:00:20]} 40. Kc2 {[%clk 0:02:03]}  fxe4 {[%clk 0:00:20]} 41. Rxe4 {[%clk 0:02:04]}  Kf7 {[%clk 0:00:21]} 42. Nf4 {[%clk 0:02:04]}  Rc6 {[%clk 0:00:21]} 43. h5 {[%clk 0:02:03]}  Rf5 {[%clk 0:00:19]} 44. Nd3 {[%clk 0:02:02]}  Rxh5 {[%clk 0:00:18]} 45. Ne5+ {[%clk 0:02:02]}  Rxe5 {[%clk 0:00:18]} 46. Rxe5 {[%clk 0:02:03]}  Bd6 {[%clk 0:00:19]} 47. Rb5 {[%clk 0:02:04]}  Bc5 {[%clk 0:00:18]} 48. f3 {[%clk 0:02:04]}  h5 {[%clk 0:00:18]} 49. Kd3 {[%clk 0:02:05]}  g6 {[%clk 0:00:18]} 50. Ke4 {[%clk 0:02:05]}  Kf6 {[%clk 0:00:18]} 51. b4 {[%clk 0:02:06]}  Bd6 {[%clk 0:00:18]} 52. bxa5 {[%clk 0:02:05]}  bxa5 {[%clk 0:00:18]} 53. Rxa5 {[%clk 0:02:06]}  Rxc3 {[%clk 0:00:18]} 54. Ra6 {[%clk 0:02:07]}  Bxg3 {[%clk 0:00:18]} 55. Ra8 {[%clk 0:02:07]}  Rc4+ {[%clk 0:00:18]} 56. Kd3 {[%clk 0:02:07]}  Rf4 {[%clk 0:00:17]} 57. Ke3 {[%clk 0:02:08]}  Rf5 {[%clk 0:00:17]} 58. Rf8+ {[%clk 0:02:08]}  Kg5 {[%clk 0:00:17]} 59. Rg8 {[%clk 0:02:08]}  Re5+ {[%clk 0:00:16]} 60. Kd4 {[%clk 0:02:09]}  Re1 {[%clk 0:00:14]} 61. Re8 {[%clk 0:02:10]}  h4 {[%clk 0:00:14]} 62. Rh8 {[%clk 0:02:10]}  Bf4 {[%clk 0:00:12]} 63. Rh7 {[%clk 0:02:09]}  Re3 {[%clk 0:00:10]} 64. Kc4 {[%clk 0:02:08]}  Rxf3 {[%clk 0:00:10]} 65. Kd4 {[%clk 0:02:08]}  Re3 {[%clk 0:00:10]} 66. Kc4 {[%clk 0:02:09]}  e5 {[%clk 0:00:11]} 67. Kd5 {[%clk 0:02:09]}  h3 {[%clk 0:00:09]} 68. Rh8 {[%clk 0:02:09]}  h2 {[%clk 0:00:10]} 69. Rh7 {[%clk 0:02:10]}  Re1 {[%clk 0:00:10]} 0-1


[Site "https://www.chess.com"]